bitfinex/quotes_SOLUSD_20241103
["timestamp","ask_amount","ask_price","bid_price","bid_amount"]
[1730612347775,8.1091439,162.55,162.52,21.8336085]
[1730612347978,8.1091439,162.55,162.52,15.6806085]
[1730612350666,14.2608439,162.56,162.52,15.6806085]
[1730612351489,14.2608439,162.56,162.53,2.40211636]
[1730612352178,8.1091439,162.57,162.53,2.40211636]
[1730612353476,8.1091439,162.57,162.54,2.40211636]
[1730612353786,6.1515,162.56,162.53,2.40211636]
[1730612353985,6.1515,162.56,162.54,2.40211636]
[1730612354162,6.1515,162.56,162.53,2.40211636]
[1730612354362,6.1515,162.56,162.54,2.40211636]
[1730612354662,14.2606439,162.56,162.53,2.40211636]
[1730612354863,14.2606439,162.56,162.54,2.40211636]
[1730612355168,14.2606439,162.56,162.53,2.40211636]
[1730612355369,14.2606439,162.56,162.54,2.40211636]
[1730612355572,14.2606439,162.56,162.52,19.52303051]
[1730612355772,14.2606439,162.56,162.53,2.40550216]
[1730612355964,14.2606439,162.56,162.54,2.40550216]
[1730612356166,14.2606439,162.56,162.52,19.52969128]
[1730612356365,14.2606439,162.56,162.53,6.25487144]
[1730612356582,14.2606439,162.56,162.54,2.40578866]
[1730612356782,14.2606439,162.56,162.55,2.40578866]
[1730612357182,14.2606439,162.56,162.54,2.40578866]
[1730612357481,14.2606439,162.56,162.52,19.52969128]
[1730612357683,14.2606439,162.56,162.53,2.40592151]
[1730612357883,14.2606439,162.56,162.54,2.40592151]
[1730612358183,14.2606439,162.56,162.52,19.52969128]
[1730612358479,14.2606439,162.56,162.53,6.25496749]
[1730612358665,14.2606439,162.56,162.54,2.40588471]
[1730612358981,14.2606439,162.56,162.55,2.40588471]
[1730612360075,14.2606439,162.56,162.54,2.40588471]
[1730612360280,14.2606439,162.56,162.52,19.52969128]
[1730612360473,14.2606439,162.56,162.53,2.40581516]
[1730612360662,14.2606439,162.56,162.54,2.40581516]
[1730612360863,14.2606439,162.56,162.55,2.40581516]
[1730612361058,14.2606439,162.56,162.54,2.40581516]
[1730612361285,14.2606439,162.56,162.55,2.40581516]
[1730612362686,6.1515,162.56,162.55,2.40581516]
[1730612363193,14.38558309,162.56,162.55,2.40581516]
[1730612370665,14.38558309,162.56,162.55,2.40598417]
[1730612371893,6.27643919,162.56,162.55,2.40598417]
[1730612373376,14.38558309,162.56,162.55,2.40598417]
[1730612374095,14.38558309,162.56,162.54,2.40598417]
[1730612374394,14.38558309,162.56,162.53,3.85020594]
[1730612374596,14.38558309,162.56,162.54,2.40615033]
[1730612374790,14.38558309,162.56,162.53,3.85020594]
[1730612375092,6.27643919,162.56,162.54,2.40614738]
[1730612375275,6.27643919,162.56,162.55,2.40614738]
[1730612376295,6.27643919,162.56,162.53,3.85020594]
[1730612376594,6.27643919,162.56,162.54,2.40624566]
[1730612376799,14.38558309,162.56,162.55,2.40624566]
[1730612377090,14.38558309,162.56,162.54,2.40595457]
[1730612377290,8.1091439,162.55,162.52,0.2979085]
[1730612377589,8.1091439,162.54,162.53,2.40603843]
[1730612378097,14.38558309,162.56,162.53,2.40603843]
[1730612378299,14.38558309,162.56,162.54,2.40600795]
[1730612378476,14.38558309,162.56,162.52,4.14811444]
[1730612378676,14.38558309,162.56,162.53,2.40594916]
[1730612378984,14.38558309,162.56,162.54,2.40594916]
[1730612379175,14.38558309,162.56,162.52,0.2979085]
[1730612379378,14.38558309,162.56,162.53,2.40607998]
[1730612379589,8.1091439,162.55,162.54,2.40607998]
[1730612379801,14.2610439,162.55,162.54,2.40607998]
[1730612381388,14.2610439,162.55,162.52,0.2979085]
[1730612381590,14.2610439,162.55,162.54,2.40630111]
[1730612381791,6.1519,162.55,162.54,2.40630111]
[1730612381983,8.23408309,162.56,162.54,2.40630111]
[1730612381984,0.12493919,162.56,162.54,2.40630111]
[1730612382177,0.12493919,162.56,162.53,3.85043487]
[1730612382379,0.12493919,162.56,162.54,2.40647907]
[1730612382680,0.12493919,162.56,162.55,2.40647907]
[1730612383398,0.25717958,162.56,162.55,2.40647907]
[1730612384672,0.13224039,162.56,162.55,2.40647907]
[1730612387598,6.28374039,162.56,162.55,2.40647907]
[1730612393690,6.28374039,162.56,162.53,3.85259727]
[1730612393898,6.28374039,162.56,162.54,2.40758844]
[1730612393899,14.39288429,162.56,162.54,2.40758844]
[1730612394082,14.39288429,162.56,162.52,0.2979085]
[1730612394287,14.39288429,162.56,162.53,6.26029525]
[1730612394610,14.39288429,162.56,162.54,2.40767461]
[1730612394811,14.39288429,162.56,162.55,2.40767461]
[1730612396588,14.39288429,162.56,162.52,0.2979085]
[1730612397082,14.39288429,162.56,162.55,2.40778025]
[1730612397309,14.39288429,162.56,162.55,4.81555547]
[1730612399405,14.39288429,162.56,162.55,2.40778025]
[1730612401911,6.28374039,162.56,162.55,2.40778025]
[1730612403209,6.41458471,162.56,162.55,2.40778025]
[1730612404512,6.28234432,162.56,162.55,2.40778025]
[1730612404892,0.13084432,162.56,162.55,2.40778025]
[1730612408904,0.13084432,162.56,162.55,4.81546015]
[1730612409094,0.13084432,162.56,162.52,14.5597524]
[1730612409295,0.13084432,162.56,162.53,6.26048149]
[1730612409519,0.13084432,162.56,162.54,2.40774173]
[1730612409711,0.13084432,162.56,162.55,2.40774173]
[1730612410693,14.39148822,162.56,162.55,2.40774173]
[1730612410893,14.39148822,162.56,162.53,3.85273976]
[1730612411101,14.39148822,162.56,162.54,2.40796014]
[1730612411311,14.39148822,162.56,162.53,3.85273976]
[1730612411492,14.39148822,162.56,162.54,2.40795069]
[1730612411697,0.13084432,162.56,162.55,8.1091439]
[1730612411897,0.13084432,162.56,162.55,14.36956715]
[1730612412509,0.13084432,162.56,162.55,20.52146715]
[1730612413026,0.12182657,162.57,162.55,35.90126715]
[1730612413314,0.12182657,162.57,162.56,14.36956715]
[1730612414220,0.12182657,162.57,162.56,20.52106715]
[1730612415316,0.12182657,162.57,162.56,16.66832739]
[1730612415619,0.12182657,162.57,162.56,20.51181059]
[1730612415835,0.12182657,162.57,162.56,16.66480319]
[1730612416625,0.12182657,162.57,162.56,16.66403121]
[1730612416918,0.12182657,162.57,162.56,44.28668731]
[1730612417118,0.12182657,162.57,162.56,76.72326291]
[1730612417620,0.12182657,162.57,162.56,44.28668731]
[1730612418631,0.12570741,162.58,162.57,45.769484]
[1730612418949,0.12570741,162.58,162.57,60.12778731]
[1730612419109,0.12570741,162.58,162.57,53.8786279]
[1730612419306,0.12570741,162.58,162.57,60.12026119]
[1730612419518,0.12570741,162.58,162.57,80.11898372]
[1730612419819,0.11206712,162.59,162.58,43.776884]
[1730612419998,0.11206712,162.59,162.58,58.12638372]
[1730612420201,0.11206712,162.59,162.58,54.28652064]
[1730612420503,0.11206712,162.59,162.58,58.12445254]
[1730612420807,0.11206712,162.59,162.58,64.27525254]
[1730612421204,0.11206712,162.59,162.58,60.43732064]
[1730612422134,0.11206712,162.59,162.58,64.27336827]
[1730612422617,0.11206712,162.59,162.58,64.26718704]
[1730612423227,0.22580138,162.59,162.58,64.26708722]
[1730612423416,0.22580138,162.59,162.58,60.43298471]
[1730612424500,0.11373426,162.59,162.58,60.43298471]
[1730612428026,0.13066757,162.61,162.6,36.438]
[1730612428224,0.13066757,162.61,162.6,76.97518471]
[1730612428627,0.13066757,162.61,162.6,74.5790279]
[1730612429023,0.13066757,162.61,162.6,76.97073341]
[1730612429224,0.13066757,162.61,162.6,74.5790279]
[1730612429530,0.13066757,162.61,162.6,74.6790279]
[1730612429713,0.11229355,162.62,162.6,83.32005078]
[1730612429905,0.12517032,162.63,162.62,0.1]
[1730612430224,0.12517032,162.63,162.62,84.4226035]
[1730612430599,0.12517032,162.63,162.62,51.9860279]
[1730612431713,0.12517032,162.63,162.62,58.1353279]
[1730612433130,0.12517032,162.63,162.62,58.0353279]
[1730612434624,0.12517032,162.63,162.62,58.1353279]
[1730612437233,0.12517032,162.63,162.62,58.0353279]
[1730612439855,0.12517032,162.63,162.62,38.0353279]
[1730612440135,0.12517032,162.63,162.62,14.2584439]
[1730612441224,0.12517032,162.63,162.62,38.0353279]
[1730612442235,0.12517032,162.63,162.62,14.2584439]
[1730612443232,0.25311091,162.63,162.62,14.2584439]
[1730612444648,0.12794059,162.63,162.62,14.2584439]
[1730612446849,0.12794059,162.63,162.6,23.4842439]
[1730612447019,0.12794059,162.63,162.6,21.5248]
[1730612447219,0.12794059,162.63,162.6,29.6339439]
[1730612452442,0.12794059,162.63,162.62,8.1091439]
[1730612453428,0.12794059,162.63,162.6,15.3751]
[1730612454333,0.12794059,162.63,162.6,23.4842439]
[1730612454942,0.12794059,162.63,162.6,29.6342439]
[1730612455743,0.12794059,162.63,162.6,21.5251]
[1730612457748,0.12794059,162.63,162.58,8.1091439]
[1730612458046,0.12794059,162.63,162.59,8.1091439]
[1730612458238,0.12794059,162.63,162.59,10.50493397]
[1730612458642,0.12794059,162.63,162.59,8.1091439]
[1730612458843,0.12794059,162.63,162.6,8.1091439]
[1730612459029,0.12794059,162.63,162.61,8.1091439]
[1730612459229,0.12794059,162.63,162.6,8.1091439]
[1730612459834,0.12794059,162.63,162.6,14.2588439]
[1730612461061,0.12794059,162.63,162.62,47.5107279]
[1730612461264,0.12794059,162.63,162.62,49.90736993]
[1730612461945,0.12794059,162.63,162.62,56.05666993]
[1730612463243,0.26145062,162.63,162.62,56.05666993]
[1730612464533,0.11409173,162.64,162.63,43.776884]
[1730612464738,0.11409173,162.64,162.63,90.55871141]
[1730612466057,0.11409173,162.64,162.63,96.70761141]
[1730612466552,0.11409173,162.64,162.63,40.49415181]
[1730612466735,0.11409173,162.64,162.63,36.65641149]
[1730612468262,0.11409173,162.64,162.63,14.2580439]
[1730612468434,0.11409173,162.64,162.63,16.65676713]
[1730612469948,0.11409173,162.64,162.63,14.2580439]
[1730612472550,0.11409173,162.64,162.63,38.0349279]
[1730612475964,0.11409173,162.64,162.63,40.43381151]
[1730612477047,0.11409173,162.64,162.63,44.271303]
[1730612479450,0.11409173,162.64,162.63,96.7078786]
[1730612479845,0.11409173,162.64,162.63,96.8078786]
[1730612480246,0.11409173,162.64,162.63,90.5715035]
[1730612480546,0.11409173,162.64,162.63,90.6715035]
[1730612480854,0.11409173,162.64,162.63,93.06898385]
[1730612481248,0.11409173,162.64,162.63,96.9053047]
[1730612481459,0.11409173,162.64,162.63,98.13434959]
[1730612482041,0.11659923,162.65,162.64,84.4226035]
[1730612482354,0.13271049,162.68,162.66,59.000884]
[1730612482579,0.13271049,162.68,162.67,54.28350825]
[1730612482765,0.13271049,162.68,162.67,54.38350825]
[1730612483446,0.25812035,162.68,162.67,60.53090825]
[1730612483867,0.25812035,162.68,162.67,60.63090825]
[1730612484172,0.23515806,162.71,162.68,43.776884]
[1730612484371,0.13325969,162.77,162.72,0.1]
[1730612484596,0.13325969,162.77,162.73,0.1]
[1730612485453,0.13325969,162.77,162.74,49.921584]
[1730612485654,0.13325969,162.77,162.75,0.1]
[1730612485874,0.13325969,162.77,162.75,51.9860279]
[1730612486052,0.13325969,162.77,162.75,51.8860279]
[1730612486270,0.13325969,162.77,162.75,54.37978706]
[1730612486453,0.13325969,162.77,162.75,51.9860279]
[1730612487051,0.13325969,162.77,162.75,58.1303279]
[1730612487956,0.13325969,162.77,162.75,58.2303279]
[1730612490157,0.13325969,162.77,162.75,58.1303279]
[1730612490469,0.13325969,162.77,162.75,58.2303279]
[1730612493359,0.13325969,162.77,162.75,34.2534439]
[1730612493873,0.13325969,162.77,162.75,14.2534439]
[1730612494585,0.13325969,162.77,162.74,23.4710439]
[1730612494762,0.13325969,162.77,162.74,15.3619]
[1730612494959,8.24240359,162.77,162.74,15.3619]
[1730612496983,8.24240359,162.77,162.71,8.1091439]
[1730612497591,8.22778473,162.76,162.71,8.1091439]
[1730612497955,0.11864083,162.76,162.71,8.1091439]
[1730612498156,8.1091439,162.75,162.7,8.1091439]
[1730612499076,8.1091439,162.75,162.71,6.1459]
[1730612499276,6.26274083,162.76,162.7,23.4745439]
[1730612499277,8.1091439,162.74,162.7,21.5116]
[1730612499858,8.1091439,162.75,162.7,21.5116]
[1730612501573,8.1091439,162.75,162.7,8.1091439]
[1730612502676,8.1091439,162.75,162.71,6.1459]
[1730612503180,24.17998473,162.76,162.71,6.1459]
[1730612503381,0.11808399,162.72,162.71,6.1459]
[1730612503673,0.11808399,162.72,162.71,14.2550439]
[1730612506586,0.11808399,162.72,162.71,38.0319279]
[1730612513772,0.11808399,162.72,162.71,58.0319279]
[1730612517487,0.11808399,162.72,162.71,6.1459]
[1730612518980,0.11808399,162.72,162.7,15.3654]
[1730612519181,8.22722789,162.72,162.7,15.3654]
[1730612519575,0.11808399,162.72,162.7,15.3654]
[1730612523296,0.11808399,162.72,162.67,30.737]
[1730612523297,8.23091086,162.71,162.67,21.5159]
[1730612524394,8.23091086,162.71,162.67,15.3685]
[1730612525072,0.12176696,162.71,162.67,23.4776439]
[1730612525695,0.12176696,162.71,162.67,29.6250439]
[1730612531892,0.12176696,162.71,162.68,8.1091439]
[1730612532099,0.12176696,162.71,162.7,8.1091439]
[1730612532304,0.12176696,162.71,162.68,8.1091439]
[1730612532484,0.12176696,162.71,162.67,8.1091439]
[1730612532681,0.12176696,162.71,162.66,8.1091439]
[1730612532879,8.1091439,162.7,162.65,31.8860279]
[1730612533799,8.23091086,162.71,162.65,31.8860279]
[1730612534193,8.23091086,162.71,162.66,29.6262439]
[1730612534194,0.12176696,162.71,162.66,29.6262439]
[1730612535705,8.23091086,162.71,162.66,29.6262439]
[1730612539085,0.12176696,162.71,162.67,2.39537876]
[1730612539904,0.12176696,162.71,162.66,29.6262439]
[1730612540209,0.12176696,162.71,162.68,6.147]
[1730612540587,8.23091086,162.71,162.68,6.147]
[1730612542387,8.1091439,162.7,162.67,2.39536248]
[1730612542905,0.12176696,162.71,162.67,8.54256248]
[1730612543097,0.12176696,162.71,162.67,32.02020638]
[1730612543306,0.11242189,162.68,162.67,29.6248439]
[1730612543493,0.11242189,162.68,162.67,32.02160722]
[1730612545416,0.11242189,162.68,162.67,23.91246332]
[1730612545588,0.11242189,162.68,162.67,21.5157]
[1730612546292,0.11242189,162.68,162.67,32.02093197]
[1730612547203,0.11242189,162.68,162.67,55.7976797]
[1730612548789,0.11242189,162.68,162.67,21.5157]
[1730612548994,0.11242189,162.68,162.67,23.91164222]
[1730612549192,0.11242189,162.68,162.67,23.91168407]
[1730612550610,0.11242189,162.68,162.67,55.79771197]
[1730612557421,0.11242189,162.68,162.67,35.85746029]
[1730612557609,0.11242189,162.68,162.67,29.6248439]
[1730612557812,0.11242189,162.68,162.67,32.02267449]
[1730612561425,0.11242189,162.68,162.67,35.85959019]
[1730612562102,0.11242189,162.68,162.67,32.02267449]
[1730612562513,0.11242189,162.68,162.67,35.85959019]
[1730612562712,0.11242189,162.68,162.67,32.02267449]
[1730612563124,0.11242189,162.68,162.67,35.85959019]
[1730612563421,0.2253793,162.68,162.67,35.85959019]
[1730612563622,0.2253793,162.68,162.67,32.02267449]
[1730612564225,0.2253793,162.68,162.67,35.85959019]
[1730612564424,0.2253793,162.68,162.67,32.02267449]
[1730612564599,0.11295741,162.68,162.67,32.02267449]
[1730612564920,0.11295741,162.68,162.67,35.85959019]
[1730612566321,0.11295741,162.68,162.67,32.02267449]
[1730612566829,0.11295741,162.68,162.67,35.85959019]
[1730612567017,0.11295741,162.68,162.67,32.02267449]
[1730612567424,0.11295741,162.68,162.67,35.85959019]
[1730612568613,0.11295741,162.68,162.67,32.02267449]
[1730612568936,0.11295741,162.68,162.67,35.85959019]
[1730612569113,0.11295741,162.68,162.67,35.87057327]
[1730612569620,0.11295741,162.68,162.67,27.76142937]
[1730612570737,0.11295741,162.68,162.67,23.91776777]
[1730612571029,0.11295741,162.68,162.67,6.24598535]
[1730612571339,0.11295741,162.68,162.67,2.40216621]
[1730612572524,0.11295741,162.68,162.65,9.99161914]
[1730612572525,0.11295741,162.68,162.63,23.4806439]
[1730612572838,8.22210131,162.68,162.67,2.40158961]
[1730612573529,0.11295741,162.68,162.66,2.40158961]
[1730612573831,0.11295741,162.68,162.65,6.148]
[1730612574012,0.11295741,162.68,162.66,2.40118733]
[1730612574334,0.11295741,162.68,162.65,6.148]
[1730612574528,0.11295741,162.68,162.66,2.40085458]
[1730612574736,0.11295741,162.68,162.65,6.148]
[1730612575034,0.11295741,162.68,162.66,2.40085458]
[1730612575330,8.22210131,162.68,162.65,6.148]
[1730612575510,8.22210131,162.68,162.66,2.40058711]
[1730612575711,8.22210131,162.68,162.65,6.148]
[1730612576010,8.22210131,162.68,162.66,2.40058724]
[1730612576206,8.22210131,162.68,162.64,25.36109264]
[1730612576443,8.22210131,162.68,162.65,2.40036246]
[1730612576746,8.22210131,162.68,162.66,2.40036246]
[1730612576940,8.22210131,162.68,162.64,25.36109264]
[1730612577144,8.22210131,162.68,162.65,8.54836391]
[1730612577336,8.22210131,162.68,162.66,2.40036391]
[1730612577531,0.11295741,162.68,162.66,2.40036391]
[1730612578346,0.11295741,162.68,162.66,2.40000045]
[1730612578544,0.11295741,162.68,162.65,6.148]
[1730612578746,0.11295741,162.68,162.66,2.40011459]
[1730612578961,0.11295741,162.68,162.65,6.148]
[1730612579127,0.11295741,162.68,162.66,2.4000877]
[1730612581036,8.22210131,162.68,162.66,2.4000877]
[1730612583147,0.11295741,162.68,162.66,2.4000877]
[1730612583340,0.13452072,162.67,162.66,2.4000877]
[1730612583648,0.13452072,162.67,162.66,8.5477877]
[1730612583851,0.13452072,162.67,162.66,6.1477]
[1730612584055,0.13452072,162.67,162.66,8.5477877]
[1730612584352,0.13452072,162.67,162.66,6.1477]
[1730612584571,0.13452072,162.67,162.66,8.5477877]
[1730612584853,8.24366462,162.67,162.65,2.4000877]
[1730612585035,8.1091439,162.66,162.65,2.4000877]
[1730612585347,8.1091439,162.66,162.63,2.39899202]
[1730612585552,8.1091439,162.64,162.63,2.39899202]
[1730612585744,8.1091439,162.64,162.63,2.39884077]
[1730612586842,8.1091439,162.64,162.62,2.39884077]
[1730612587033,6.1477,162.66,162.63,2.39884077]
[1730612587351,6.1477,162.66,162.62,2.39884077]
[1730612587554,8.1091439,162.63,162.62,2.39884077]
[1730612587755,8.1091439,162.63,162.61,3.32077724]
[1730612587938,8.1091439,162.62,162.61,3.32077724]
[1730612588539,8.1091439,162.63,162.61,3.32077724]
[1730612588956,8.1091439,162.63,162.61,3.31897077]
[1730612589164,8.1091439,162.63,162.61,0.92193647]
[1730612589336,8.1091439,162.62,162.61,0.92193647]
[1730612591057,6.1477,162.66,162.61,7.07153647]
[1730612591058,8.1091439,162.64,162.61,7.07153647]
[1730612591238,6.1477,162.66,162.61,7.07153647]
[1730612591239,8.1091439,162.63,162.61,7.07153647]
[1730612599556,8.1091439,162.62,162.61,7.07153647]
[1730612600263,8.1091439,162.63,162.61,7.07153647]
[1730612600446,8.1091439,162.62,162.61,7.07153647]
[1730612602168,8.1091439,162.62,162.61,0.92193647]
[1730612603241,8.22491163,162.62,162.61,0.92193647]
[1730612603866,8.22491163,162.62,162.61,7.07153647]
[1730612603867,0.11576773,162.62,162.61,7.07153647]
[1730612604166,8.22491163,162.62,162.6,6.1499]
[1730612607056,8.22491163,162.62,162.59,23.91897522]
[1730612607255,8.22491163,162.62,162.59,21.5264]
[1730612609451,8.22491163,162.62,162.6,8.1091439]
[1730612609452,0.11576773,162.62,162.6,8.1091439]
[1730612609655,0.11576773,162.62,162.6,10.50243806]
[1730612610348,0.11576773,162.62,162.59,29.6355439]
[1730612610548,0.11576773,162.62,162.6,2.39371457]
[1730612611464,0.11576773,162.62,162.61,6.1496]
[1730612614154,0.11576773,162.62,162.6,21.5251]
[1730612614352,0.11576773,162.62,162.6,23.91991778]
[1730612614671,0.11576773,162.62,162.61,2.3952838]
[1730612615049,0.11576773,162.62,162.6,21.5251]
[1730612616076,0.11576773,162.62,162.61,2.39589755]
[1730612616287,0.11576773,162.62,162.61,8.54549755]
[1730612616466,0.11576773,162.62,162.61,16.65464145]
[1730612616856,0.11576773,162.62,162.61,40.43152545]
[1730612617061,0.11576773,162.62,162.61,64.26439253]
[1730612617853,0.11576773,162.62,162.61,73.1259279]
[1730612618053,0.11576773,162.62,162.61,79.35785605]
[1730612623280,0.23225804,162.62,162.61,79.35785605]
[1730612624193,0.25935536,162.63,162.62,43.876884]
[1730612624371,0.25935536,162.63,162.62,90.75453165]
[1730612624682,0.13373267,162.63,162.62,105.84483165]
[1730612624881,0.13373267,162.63,162.62,109.84071615]
[1730612625079,0.11166312,162.64,162.63,0.1]
[1730612625396,0.11166312,162.64,162.63,90.65453165]
[1730612625765,0.11166312,162.64,162.63,84.4226035]
[1730612625969,0.11166312,162.64,162.63,90.65312987]
[1730612626267,0.11166312,162.64,162.63,64.26545427]
[1730612626785,0.11166312,162.64,162.63,64.36545427]
[1730612627886,0.11166312,162.64,162.63,96.90202987]
[1730612628601,0.12619041,162.65,162.64,50.571084]
[1730612628775,0.12619041,162.65,162.64,112.43762987]
[1730612628974,0.11468005,162.66,162.65,52.0860279]
[1730612629175,0.11468005,162.66,162.65,58.31655427]
[1730612629383,0.11468005,162.66,162.65,58.30807512]
[1730612630167,0.11468005,162.66,162.65,64.45617512]
[1730612633390,0.11468005,162.66,162.65,64.44683159]
[1730612637392,0.11468005,162.66,162.65,36.84661015]
[1730612637595,0.11468005,162.66,162.65,36.74661015]
[1730612637779,0.11468005,162.66,162.65,34.4572439]
[1730612637979,0.11468005,162.66,162.65,36.84415712]
[1730612638793,0.11468005,162.66,162.65,60.62104112]
[1730612640805,0.11468005,162.66,162.65,60.52035283]
[1730612641104,0.11468005,162.66,162.65,60.42035385]
[1730612641303,0.11468005,162.66,162.65,58.0341279]
[1730612642607,0.11468005,162.66,162.65,60.42034807]
[1730612643289,0.24461754,162.66,162.65,60.42034807]
[1730612644381,0.24461754,162.66,162.65,60.52034807]
[1730612644597,0.12993749,162.66,162.65,65.66630921]
[1730612644797,0.11552165,162.67,162.66,43.976884]
[1730612645002,0.11552165,162.67,162.66,58.28932331]
[1730612645399,0.11552165,162.67,162.66,64.43702331]
[1730612648309,0.11552165,162.67,162.66,58.2337279]
[1730612648506,0.11552165,162.67,162.66,64.43503171]
[1730612648811,0.11552165,162.67,162.66,66.81939124]
[1730612649209,0.11552165,162.67,162.66,64.43440937]
[1730612652113,0.11552165,162.67,162.66,58.2337279]
[1730612652295,0.11552165,162.67,162.66,64.43541179]
[1730612652498,0.11784397,162.68,162.67,43.976884]
[1730612652707,0.13109161,162.69,162.68,23.876884]
[1730612653009,5.0372085,162.8,162.7,0.2]
[1730612653307,5.0372085,162.8,162.7,54.47115595]
[1730612654004,8.1091439,162.79,162.7,54.27115595]
[1730612654307,8.1091439,162.79,162.7,54.37115595]
[1730612654510,8.1091439,162.79,162.7,58.1322279]
[1730612654707,8.1091439,162.79,162.7,60.61728374]
[1730612657413,8.1091439,162.79,162.7,60.41728374]
[1730612659617,8.1091439,162.79,162.7,58.0322279]
[1730612659824,8.1091439,162.79,162.7,60.41766866]
[1730612660001,8.1091439,162.79,162.7,58.0322279]
[1730612660407,8.1091439,162.79,162.7,60.41764211]
[1730612661419,8.1091439,162.76,162.7,34.2553439]
[1730612662922,8.1091439,162.76,162.7,58.0322279]
[1730612663333,0.24695586,162.71,162.7,58.0322279]
[1730612663627,0.24695586,162.71,162.7,60.42059951]
[1730612664721,0.11242154,162.71,162.7,60.42059951]
[1730612667307,0.11242154,162.71,162.7,60.42303772]
[1730612669320,0.11242154,162.71,162.7,64.25139785]
[1730612672028,0.11242154,162.71,162.7,52.31389382]
[1730612672530,0.11242154,162.71,162.7,8.53700982]
[1730612673035,0.11242154,162.71,162.7,8.54021357]
[1730612674927,0.11242154,162.71,162.7,2.39493774]
[1730612675116,0.11242154,162.71,162.7,4.78987548]
[1730612675530,0.11242154,162.71,162.7,2.39493774]
[1730612676316,0.11242154,162.71,162.7,8.54113774]
[1730612677814,0.11242154,162.71,162.7,2.39493774]
[1730612679027,0.11242154,162.71,162.7,2.39510418]
[1730612680806,8.22156544,162.71,162.7,2.39510418]
[1730612681012,8.22156544,162.71,162.69,15.3662]
[1730612681229,8.1091439,162.7,162.69,15.3662]
[1730612681433,8.1091439,162.7,162.69,17.76123046]
[1730612682427,8.1091439,162.7,162.69,2.39503046]
[1730612682734,8.1091439,162.7,162.68,2.39492909]
[1730612683130,8.1091439,162.7,162.67,8.54222909]
[1730612683433,0.11642446,162.69,162.67,8.54222909]
[1730612684011,0.11642446,162.69,162.67,6.1473]
[1730612684209,0.11642446,162.69,162.67,8.54212482]
[1730612686738,0.11642446,162.69,162.67,2.3943355]
[1730612687429,8.22556836,162.69,162.67,2.3943355]
[1730612689139,8.22556836,162.69,162.67,8.5415355]
[1730612693035,0.11642446,162.69,162.67,8.5415355]
[1730612694026,0.11642446,162.69,162.66,15.369]
[1730612695827,8.22556836,162.69,162.66,15.369]
[1730612697037,0.11642446,162.69,162.66,15.369]
[1730612699843,0.11642446,162.69,162.66,21.5167]
[1730612700235,0.11642446,162.69,162.66,29.6258439]
[1730612702339,0.11642446,162.69,162.66,21.5167]
[1730612703432,0.11273102,162.67,162.66,21.5167]
[1730612704249,0.11273102,162.67,162.66,15.369]
[1730612706842,8.22187492,162.67,162.65,6.1481]
[1730612707147,0.11273102,162.67,162.65,6.1481]
[1730612707930,0.11273102,162.67,162.64,23.91309533]
[1730612708147,0.11273102,162.67,162.64,29.6289439]
[1730612710048,0.11273102,162.67,162.64,15.3713]
[1730612713457,0.11273102,162.67,162.64,21.5198]
[1730612715857,0.11273102,162.67,162.65,10.5023586]
[1730612717755,0.11273102,162.67,162.66,6.1477]
[1730612720161,0.11273102,162.67,162.66,16.65115887]
[1730612720862,0.11273102,162.67,162.66,16.65145837]
[1730612722253,0.11273102,162.67,162.66,8.54231447]
[1730612723468,0.23556095,162.67,162.66,8.54231447]
[1730612724576,0.12282993,162.67,162.66,8.54363333]
[1730612728163,0.12282993,162.67,162.66,8.54453224]
[1730612728668,0.12282993,162.67,162.66,16.65367614]
[1730612729039,0.12282993,162.67,162.66,8.54453224]
[1730612730465,0.12282993,162.67,162.66,40.43056014]
[1730612730769,0.12282993,162.67,162.66,44.26584482]
[1730612731063,0.12282993,162.67,162.66,64.26584482]
[1730612731251,0.12309494,162.68,162.66,64.26584482]
[1730612731456,0.12309494,162.68,162.67,58.11814482]
[1730612732072,0.12309494,162.68,162.67,62.11415252]
[1730612732363,0.12309494,162.68,162.67,74.53324482]
[1730612732667,0.12309494,162.68,162.67,80.68064482]
[1730612733052,0.12309494,162.68,162.67,84.67665252]
[1730612733259,0.12309494,162.68,162.67,80.68064482]
[1730612733863,0.12309494,162.68,162.67,80.58064482]
[1730612735675,0.12309494,162.68,162.67,80.57458966]
[1730612742777,0.11281079,162.69,162.67,80.57458966]
[1730612742979,0.11281079,162.69,162.68,8.1091439]
[1730612743287,0.11281079,162.69,162.68,58.11208966]
[1730612743461,0.22640184,162.69,162.68,58.11208966]
[1730612743784,0.22640184,162.69,162.68,58.21208966]
[1730612744480,0.11359105,162.69,162.68,64.35908966]
[1730612745055,0.11359105,162.69,162.68,64.45908966]
[1730612745260,0.12017776,162.7,162.69,58.1617279]
[1730612745567,0.12017776,162.7,162.69,64.38778966]
[1730612746455,0.12017776,162.7,162.69,64.4083279]
[1730612746659,0.12017776,162.7,162.69,70.62572397]
[1730612749059,0.12017776,162.7,162.69,70.52572397]
[1730612749979,0.12017776,162.7,162.69,64.3083279]
[1730612750162,0.12017776,162.7,162.69,70.52007835]
[1730612752278,0.12017776,162.7,162.69,66.69732738]
[1730612753887,0.12017776,162.7,162.69,70.51847103]